lending/lending_fUSD_20241115
["ID","MTS","AMOUNT","RATE_DAILY","PERIOD"]
[342318369,1731701519927,-2043.12,9.787e-05,2]
[342318370,1731701519936,-2043.14289517,9.787e-05,2]
[342318371,1731701519944,-294.92497881,9.787e-05,2]
[342318372,1731701519954,-1154.61,9.787e-05,2]
[342318373,1731701519963,-230.99506571,9.787e-05,2]
[342318374,1731701519974,-923.61493429,9.787e-05,2]
[342318375,1731701519983,-1154.61,9.787e-05,2]
[342318376,1731701519993,-1154.61,9.787e-05,2]
[342318377,1731701520002,-1154.61,9.787e-05,2]
[342318378,1731701520012,-500.0,9.787e-05,2]
[342318379,1731701520022,-454.60310846,9.787e-05,2]
[342318380,1731701520033,-45.39689154,9.787e-05,2]
[342318381,1731701520043,-1154.83,9.787e-05,2]
[342318382,1731701520052,-500.0,9.787e-05,2]
[342318383,1731701520062,-500.0,9.787e-05,2]
[342318384,1731701520071,-500.0,9.787e-05,2]
[342318385,1731701520081,-500.0,9.787e-05,2]
[342318386,1731701520090,-500.0,9.787e-05,2]
[342318387,1731701520100,-500.0,9.787e-05,2]
[342318388,1731701520109,-500.0,9.787e-05,2]
[342318389,1731701520119,-500.0,9.787e-05,2]
[342318390,1731701520128,-187.3914757,9.787e-05,2]
[342318391,1731701520137,-838.7,9.787e-05,7]
[342318392,1731701520150,-838.7,9.787e-05,7]
[342318393,1731701520161,-838.7,9.787e-05,7]
[342318394,1731701520170,-428.28163276,9.787e-05,7]
[342318395,1731701520691,-410.41836724,9.787e-05,7]
[342318396,1731701520701,-838.71504017,9.787e-05,7]
[342318397,1731701520711,-1361.9,9.787e-05,2]
[342318398,1731701520720,-1361.9,9.787e-05,2]
[342318399,1731701520729,-1361.9,9.787e-05,2]
[342318400,1731701520739,-1361.9,9.787e-05,2]
[342318401,1731701520748,-1361.9,9.787e-05,2]
[342318402,1731701520757,-1361.9,9.787e-05,2]
[342318403,1731701520767,-609.43,9.787e-05,2]
[342318404,1731701520776,-1361.9,9.787e-05,2]
[342318405,1731701520786,-609.43,9.787e-05,2]
[342318406,1731701520796,-1144.99022199,9.787e-05,2]
[342318407,1731701520809,-216.90977801,9.787e-05,2]
[342318408,1731701520818,-609.43,9.787e-05,2]
[342318409,1731701520828,-1188.98672331,9.787e-05,2]
[342318410,1731701520839,-172.91327669,9.787e-05,2]
[342318411,1731701520849,-609.43,9.787e-05,2]
[342318412,1731701520858,-86.79604469,9.787e-05,2]
[342318413,1731701520870,-1275.10395531,9.787e-05,2]
[342318414,1731701520879,-609.47785116,9.787e-05,2]
[342318415,1731701520888,-1362.05482033,9.787e-05,2]
[342318416,1731701520901,-789.64,9.787e-05,2]
[342318417,1731701520910,-789.64,9.787e-05,2]
[342318418,1731701520920,-789.64,9.787e-05,2]
[342318419,1731701520930,-789.64,9.787e-05,2]
[342318420,1731701520940,-789.64,9.787e-05,2]
[342318421,1731701520950,-789.64,9.787e-05,2]
[342318422,1731701520960,-789.64,9.787e-05,2]
[342318423,1731701520970,-789.64,9.787e-05,2]
[342318424,1731701520980,-789.64,9.787e-05,2]
[342318425,1731701520989,-789.64,9.787e-05,2]
[342318426,1731701520999,-789.75602866,9.787e-05,2]
[342318427,1731701521008,-577.59,9.787e-05,2]
[342318428,1731701521018,-577.59,9.787e-05,2]
[342318429,1731701521028,-577.59,9.787e-05,2]
[342318430,1731701521037,-577.59,9.787e-05,2]
[342318431,1731701521046,-577.59,9.787e-05,2]
[342318432,1731701521056,-577.59,9.787e-05,2]
[342318433,1731701521065,-577.59,9.787e-05,2]
[342318434,1731701521074,-577.59,9.787e-05,2]
[342318435,1731701521083,-577.59,9.787e-05,2]
[342318436,1731701521093,-577.59,9.787e-05,2]
[342318437,1731701521102,-577.75526638,9.787e-05,2]
[342318438,1731701521112,-500.0,9.787e-05,2]
[342318439,1731701521121,-173.6,9.787e-05,2]
[342318440,1731701521130,-953.97,9.787e-05,2]
[342318441,1731701521147,-953.97,9.787e-05,2]
[342318442,1731701521158,-953.97,9.787e-05,2]
[342318443,1731701521168,-953.97,9.787e-05,2]
[342318444,1731701521177,-954.18940997,9.787e-05,2]
[342318445,1731701521186,-754.31,9.787e-05,2]
[342318446,1731701521197,-754.31,9.787e-05,2]
[342318447,1731701521206,-754.31,9.787e-05,2]
[342318448,1731701521215,-754.31,9.787e-05,2]
[342318449,1731701521227,-754.31,9.787e-05,2]
[342318450,1731701521236,-754.31,9.787e-05,2]
[342318451,1731701521247,-754.31,9.787e-05,2]
[342318452,1731701521256,-758.68,9.787e-05,2]
[342318453,1731701521266,-754.31,9.787e-05,2]
[342318454,1731701521275,-758.68,9.787e-05,2]
[342318455,1731701521285,-754.31,9.787e-05,2]
[342318456,1731701521294,-758.68,9.787e-05,2]
[342318457,1731701521304,-754.31,9.787e-05,2]
[342318458,1731701521314,-758.68,9.787e-05,2]
[342318459,1731701521325,-754.53367576,9.787e-05,2]
[342318460,1731701521334,-758.8773779,9.787e-05,2]
[342318461,1731701521344,-527.2,9.787e-05,2]
[342318462,1731701521353,-527.2,9.787e-05,2]
[342318463,1731701521362,-527.2,9.787e-05,2]
[342318464,1731701521372,-527.2,9.787e-05,2]
[342318465,1731701521381,-527.23175475,9.787e-05,2]
[342318466,1731701521390,-500.0,9.787e-05,2]
[342318467,1731701521401,-500.0,9.787e-05,2]
[342318468,1731701521412,-179.82,9.787e-05,2]
[342318469,1731701521421,-596.07,9.787e-05,2]
[342318470,1731701521430,-596.07,9.787e-05,2]
[342318471,1731701521439,-596.07,9.787e-05,2]
[342318472,1731701521449,-596.07,9.787e-05,2]
[342318473,1731701521458,-752.8,9.787e-05,2]
[342318474,1731701521467,-596.07,9.787e-05,2]
[342318475,1731701521476,-752.8,9.787e-05,2]
[342318476,1731701521485,-596.07,9.787e-05,2]
[342318477,1731701521494,-752.8,9.787e-05,2]
[342318478,1731701521504,-596.07,9.787e-05,2]
[342318479,1731701521513,-752.8,9.787e-05,2]
[342318480,1731701521523,-752.82357417,9.787e-05,2]
[342318481,1731701521532,-596.07,9.787e-05,2]
[342318482,1731701521542,-596.07,9.787e-05,2]
[342318483,1731701521551,-596.07,9.787e-05,2]
[342318484,1731701521560,-596.29870686,9.787e-05,2]
[342318485,1731701521569,-690.09,9.787e-05,2]
[342318486,1731701521585,-690.09,9.787e-05,2]
[342318487,1731701521598,-690.09,9.787e-05,2]
[342318488,1731701521608,-690.09,9.787e-05,2]
[342318489,1731701521618,-690.19950147,9.787e-05,2]
[342318490,1731701521628,-500.0,9.787e-05,2]
[342318491,1731701521637,-500.0,9.787e-05,2]
[342318492,1731701521650,-531.04971006,9.787e-05,2]
[342318493,1731701521661,-1312.68,9.787e-05,2]
[342318494,1731701521669,-1312.68,9.787e-05,2]
[342318495,1731701521679,-1312.68,9.787e-05,2]
[342318496,1731701521688,-1312.68,9.787e-05,2]
[342318497,1731701521696,-1312.68,9.787e-05,2]
[342318498,1731701521706,-1312.68,9.787e-05,2]
[342318499,1731701521715,-1312.68,9.787e-05,2]
[342318500,1731701521725,-1312.68,9.787e-05,2]
[342318501,1731701521734,-1312.68,9.787e-05,2]
[342318502,1731701521744,-1312.68,9.787e-05,2]
[342318503,1731701521753,-1312.82068924,9.787e-05,2]
[342318504,1731701521763,-500.0,9.787e-05,2]
[342318505,1731701521772,-500.0,9.787e-05,2]
[342318506,1731701521782,-500.0,9.787e-05,2]
[342318507,1731701521792,-500.0,9.787e-05,2]
[342318508,1731701521801,-431.87942224,9.787e-05,2]
[342318509,1731701521811,-1819.32,9.787e-05,2]
[342318510,1731701521821,-1819.32,9.787e-05,2]
[342318511,1731701521830,-1819.32,9.787e-05,2]
[342318512,1731701521839,-1819.32,9.787e-05,2]
[342318513,1731701521849,-1819.32,9.787e-05,2]
[342318514,1731701521858,-1819.32,9.787e-05,2]
[342318515,1731701521868,-1819.32,9.787e-05,2]
[342318516,1731701521877,-1819.32,9.787e-05,2]
[342318517,1731701521886,-1819.32,9.787e-05,2]
[342318518,1731701521896,-1688.78,9.787e-05,2]
[342318519,1731701521906,-1819.32,9.787e-05,2]
[342318520,1731701521915,-1688.78,9.787e-05,2]
[342318521,1731701521925,-1819.39730124,9.787e-05,2]
[342318522,1731701521934,-1688.78,9.787e-05,2]
[342318523,1731701521945,-841.64,9.787e-05,2]
[342318524,1731701521954,-1688.78,9.787e-05,2]
[342318525,1731701521964,-841.64,9.787e-05,2]
[342318526,1731701521973,-1688.80755179,9.787e-05,2]
[342318527,1731701521983,-841.64,9.787e-05,2]
[342318528,1731701521992,-841.64,9.787e-05,2]
[342318529,1731701522002,-841.68399016,9.787e-05,2]
[342318530,1731701522011,-500.0,9.787e-05,2]
[342318531,1731701522021,-429.41686578,9.787e-05,2]
[342318532,1731701522030,-500.0,9.787e-05,2]
[342318533,1731701522040,-365.62515679,9.787e-05,2]
[342318534,1731701522049,-240.64,9.787e-05,2]
[342318535,1731701522059,-656.7,9.787e-05,2]
[342318536,1731701522068,-656.7,9.787e-05,2]
[342318537,1731701522078,-656.7,9.787e-05,2]
[342318538,1731701522087,-656.7,9.787e-05,2]
[342318539,1731701522097,-656.7,9.787e-05,2]
[342318540,1731701522106,-656.7,9.787e-05,2]
[342318541,1731701522116,-500.0,9.787e-05,2]
[342318542,1731701522126,-656.7,9.787e-05,2]
[342318543,1731701522135,-656.7,9.787e-05,2]
[342318544,1731701522145,-500.0,9.787e-05,2]
[342318545,1731701522167,-656.7,9.787e-05,2]
[342318546,1731701522177,-565.68212478,9.787e-05,2]
[342318547,1731701522186,-656.7,9.787e-05,2]
[342318548,1731701522199,-656.7,9.787e-05,2]
[342318549,1731701522209,-500.0,9.787e-05,2]
[342318550,1731701522219,-571.86995937,9.787e-05,2]
[342318551,1731701522232,-1531.12,9.787e-05,2]
[342318552,1731701522243,-1531.12,9.787e-05,2]
[342318553,1731701522252,-1531.12,9.787e-05,2]
[342318554,1731701522262,-1395.7,9.787e-05,2]
[342318555,1731701522272,-1531.12,9.787e-05,2]
[342318556,1731701522281,-1531.12,9.787e-05,2]
[342318557,1731701522291,-1395.7,9.787e-05,2]
[342318558,1731701522301,-1531.12,9.787e-05,2]
[342318559,1731701522310,-1395.7,9.787e-05,2]
[342318560,1731701522320,-1531.12,9.787e-05,2]
[342318561,1731701522330,-1395.7,9.787e-05,2]
[342318562,1731701522340,-1531.12,9.787e-05,2]
[342318563,1731701522350,-1395.91000925,9.787e-05,2]
[342318564,1731701522361,-1531.12,9.787e-05,2]
[342318565,1731701522370,-1531.12,9.787e-05,2]
[342318566,1731701522380,-1531.15090568,9.787e-05,2]
[342318567,1731701522391,-992.78,9.787e-05,2]
[342318568,1731701522407,-992.78,9.787e-05,2]
[342318569,1731701522417,-992.78,9.787e-05,2]
[342318570,1731701522427,-992.78,9.787e-05,2]
[342318571,1731701522437,-992.78,9.787e-05,2]
[342318572,1731701522447,-992.78,9.787e-05,2]
[342318573,1731701522457,-992.78,9.787e-05,2]
[342318574,1731701522467,-992.78,9.787e-05,2]
[342318575,1731701522477,-992.78,9.787e-05,2]
[342318576,1731701522487,-2392.5,9.787e-05,2]
[342318577,1731701522497,-992.78,9.787e-05,2]
[342318578,1731701522507,-2392.5,9.787e-05,2]
[342318579,1731701522516,-992.79613271,9.787e-05,2]
[342318580,1731701522526,-2392.5,9.787e-05,2]
[342318581,1731701522536,-2392.5,9.787e-05,2]
[342318582,1731701522546,-2392.68037234,9.787e-05,2]
[342318583,1731701522556,-753.39,9.787e-05,2]
[342318584,1731701522565,-753.39,9.787e-05,2]
[342318585,1731701522575,-736.81,9.787e-05,2]
[342318586,1731701522584,-753.39,9.787e-05,2]
[342318587,1731701522594,-736.81,9.787e-05,2]
[342318588,1731701522603,-753.39,9.787e-05,2]
[342318589,1731701522612,-736.81,9.787e-05,2]
[342318590,1731701522622,-753.39,9.787e-05,2]
[342318591,1731701522631,-736.81,9.787e-05,2]
[342318592,1731701522641,-753.39,9.787e-05,2]
[342318593,1731701522655,-736.97870619,9.787e-05,2]
[342318594,1731701522666,-753.39,9.787e-05,2]
[342318595,1731701522675,-753.39,9.787e-05,2]
[342318596,1731701522685,-753.39,9.787e-05,2]
[342318597,1731701522696,-753.39,9.787e-05,2]
[342318598,1731701522706,-753.62430139,9.787e-05,2]
[342318599,1731701522715,-1097.72,9.787e-05,2]
[342318600,1731701522725,-1097.72,9.787e-05,2]
[342318601,1731701522735,-500.0,9.787e-05,2]
[342318602,1731701522744,-1097.72,9.787e-05,2]
[342318603,1731701522754,-500.0,9.787e-05,2]
[342318604,1731701522764,-1097.72,9.787e-05,2]
[342318605,1731701522773,-500.0,9.787e-05,2]
[342318606,1731701522783,-1097.75444415,9.787e-05,2]
[342318607,1731701522793,-500.0,9.787e-05,2]
[342318608,1731701522802,-500.0,9.787e-05,2]
[342318609,1731701522812,-501.78990713,9.787e-05,2]
[342318610,1731701522822,-1711.34,9.787e-05,2]
[342318611,1731701522831,-1711.34,9.787e-05,2]
[342318612,1731701522841,-1711.34,9.787e-05,2]
[342318613,1731701522850,-1711.34,9.787e-05,2]
[342318614,1731701522859,-836.58,9.787e-05,2]
[342318615,1731701522868,-836.58,9.787e-05,2]
[342318616,1731701522878,-1711.3668619,9.787e-05,2]
[342318617,1731701522887,-836.58,9.787e-05,2]
[342318618,1731701523228,-836.58,9.787e-05,2]
[342318619,1731701523239,-836.67115005,9.787e-05,2]
[342318620,1731701523249,-500.0,9.787e-05,2]
[342318621,1731701523259,-500.0,9.787e-05,2]
[342318622,1731701523270,-500.0,9.787e-05,2]
[342318623,1731701523280,-500.0,9.787e-05,2]
[342318624,1731701523291,-500.0,9.787e-05,2]
[342318625,1731701523302,-500.0,9.787e-05,2]
[342318626,1731701523313,-500.0,9.787e-05,2]
[342318627,1731701523323,-500.0,9.787e-05,2]
[342318628,1731701523334,-461.30013405,9.787e-05,2]
[342318629,1731701523344,-1361.59,9.787e-05,2]
[342318630,1731701523355,-1361.59,9.787e-05,2]
[342318631,1731701523366,-1361.59,9.787e-05,2]
[342318632,1731701523375,-1361.59,9.787e-05,2]
[342318633,1731701523386,-1361.59,9.787e-05,2]
[342318634,1731701523399,-1361.59,9.787e-05,2]
[342318635,1731701523409,-1361.59,9.787e-05,2]
[342318636,1731701523419,-1361.59,9.787e-05,2]
[342318637,1731701523429,-1361.59,9.787e-05,2]
[342318638,1731701523438,-1361.59,9.787e-05,2]
[342318639,1731701523448,-1361.64681983,9.787e-05,2]
[342318640,1731701523458,-562.36868504,9.787e-05,2]
[342318641,1731701523468,-519.39,9.787e-05,2]
[342318642,1731701523477,-519.39,9.787e-05,2]
[342318643,1731701523487,-519.39,9.787e-05,2]
[342318644,1731701523498,-519.39,9.787e-05,2]
[342318645,1731701523507,-519.39,9.787e-05,2]
[342318646,1731701523517,-519.39,9.787e-05,2]
[342318647,1731701523527,-519.39,9.787e-05,2]
[342318648,1731701523539,-519.39,9.787e-05,2]
[342318649,1731701523549,-519.39,9.787e-05,2]
[342318650,1731701523558,-519.39,9.787e-05,2]
[342318651,1731701523568,-519.51508,9.787e-05,2]
[342318652,1731701523578,-718.22,9.787e-05,2]
[342318653,1731701523587,-718.22,9.787e-05,2]
[342318654,1731701523597,-1351.11,9.787e-05,2]
[342318655,1731701523607,-718.22,9.787e-05,2]
[342318656,1731701523617,-1351.11,9.787e-05,2]
[342318657,1731701523627,-1351.11,9.787e-05,2]
[342318658,1731701523636,-718.22,9.787e-05,2]
[342318659,1731701523650,-1351.11,9.787e-05,2]
[342318660,1731701523660,-718.27653396,9.787e-05,2]
[342318661,1731701523670,-1351.31605682,9.787e-05,2]
[342318662,1731701523680,-685.48,9.787e-05,2]
[342318663,1731701523690,-685.48,9.787e-05,2]
[342318664,1731701523700,-685.48,9.787e-05,2]
[342318665,1731701523710,-708.47,9.787e-05,2]
[342318666,1731701523719,-685.48,9.787e-05,2]
[342318667,1731701523730,-708.47,9.787e-05,2]
[342318668,1731701523740,-685.48,9.787e-05,2]
[342318669,1731701523751,-708.47,9.787e-05,2]
[342318670,1731701523761,-685.48,9.787e-05,2]
[342318671,1731701523771,-708.47,9.787e-05,2]
[342318672,1731701523781,-685.48,9.787e-05,2]
[342318673,1731701523791,-708.70216726,9.787e-05,2]
[342318674,1731701523801,-685.48,9.787e-05,2]
[342318675,1731701523811,-685.48,9.787e-05,2]
[342318676,1731701523821,-685.48,9.787e-05,2]
[342318677,1731701523832,-685.57332825,9.787e-05,2]
[342318678,1731701523841,-569.44,9.787e-05,2]
[342318679,1731701523851,-569.44,9.787e-05,2]
[342318680,1731701523861,-569.44,9.787e-05,2]
[342318681,1731701523871,-569.44,9.787e-05,2]
[342318682,1731701523881,-569.44,9.787e-05,2]
[342318683,1731701523892,-569.44,9.787e-05,2]
[342318684,1731701523905,-569.44,9.787e-05,2]
[342318685,1731701523915,-569.44,9.787e-05,2]
[342318686,1731701523925,-569.44,9.787e-05,2]
[342318687,1731701523935,-569.44,9.787e-05,2]
[342318688,1731701523944,-569.49534442,9.787e-05,2]
[342318689,1731701523954,-500.0,9.787e-05,2]
[342318690,1731701523963,-500.0,9.787e-05,2]
[342318691,1731701523973,-500.0,9.787e-05,2]
[342318692,1731701523983,-500.0,9.787e-05,2]
[342318693,1731701523993,-500.0,9.787e-05,2]
[342318694,1731701524003,-321.69410404,9.787e-05,2]
[342318695,1731701524013,-500.0,9.787e-05,2]
[342318696,1731701524023,-500.0,9.787e-05,2]
[342318697,1731701524033,-500.0,9.787e-05,2]
[342318698,1731701524043,-258.17959888,9.787e-05,2]
[342318699,1731701524053,-556.43,9.787e-05,2]
[342318700,1731701524064,-556.43,9.787e-05,2]
[342318701,1731701524074,-556.43,9.787e-05,2]
[342318702,1731701524085,-556.43,9.787e-05,2]
[342318703,1731701524096,-556.6432034,9.787e-05,2]
[342318704,1731701524107,-1439.31,9.787e-05,2]
[342318705,1731701524117,-1439.31,9.787e-05,2]
[342318706,1731701524128,-1439.31,9.787e-05,2]
[342318707,1731701524138,-1439.31,9.787e-05,2]
[342318708,1731701524153,-1439.54434882,9.787e-05,2]
[342318709,1731701524163,-1000.81,9.787e-05,2]
[342318710,1731701524174,-1000.81,9.787e-05,2]
[342318711,1731701524185,-1000.81,9.787e-05,2]
[342318712,1731701524195,-1000.81,9.787e-05,2]
[342318713,1731701524206,-1000.81,9.787e-05,2]
[342318714,1731701524216,-1000.81,9.787e-05,2]
[342318715,1731701524227,-1000.81,9.787e-05,2]
[342318716,1731701524238,-1000.81,9.787e-05,2]
[342318717,1731701524248,-1000.81,9.787e-05,2]
[342318718,1731701524259,-1000.81,9.787e-05,2]
[342318719,1731701524268,-1000.82074754,9.787e-05,2]
[342318720,1731701524279,-1145.91,9.787e-05,2]
[342318721,1731701524289,-1145.91,9.787e-05,2]
[342318722,1731701524299,-1145.91,9.787e-05,2]
[342318723,1731701524308,-1145.91,9.787e-05,2]
[342318724,1731701524318,-1145.91,9.787e-05,2]
[342318725,1731701524329,-1145.91,9.787e-05,2]
[342318726,1731701524339,-1145.91,9.787e-05,2]
[342318727,1731701524349,-1145.91,9.787e-05,2]
[342318728,1731701524359,-1145.91,9.787e-05,2]
[342318729,1731701524369,-1145.91,9.787e-05,2]
[342318730,1731701524379,-1146.10781443,9.787e-05,2]
[342318731,1731701524391,-1649.21,9.787e-05,2]
[342318732,1731701524405,-1649.21,9.787e-05,2]
[342318733,1731701524416,-1649.21,9.787e-05,2]
[342318734,1731701524426,-1649.21,9.787e-05,2]
[342318735,1731701524436,-500.0,9.787e-05,2]
[342318736,1731701524446,-1649.27076229,9.787e-05,2]
[342318737,1731701524457,-500.0,9.787e-05,2]
[342318738,1731701524467,-500.0,9.787e-05,2]
[342318739,1731701524478,-500.0,9.787e-05,2]
[342318740,1731701524489,-357.0059771,9.787e-05,2]
[342318741,1731701524500,-218.85705331,9.787e-05,2]
[342318742,1731701524510,-537.58,9.787e-05,2]
[342318743,1731701524521,-537.58,9.787e-05,2]
[342318744,1731701524532,-537.58,9.787e-05,2]
[342318745,1731701524543,-537.58,9.787e-05,2]
[342318746,1731701524553,-537.62464958,9.787e-05,2]
[342318747,1731701524563,-793.55,9.787e-05,2]
[342318748,1731701524574,-793.55,9.787e-05,2]
[342318749,1731701524585,-793.55,9.787e-05,2]
[342318750,1731701524595,-793.55,9.787e-05,2]
[342318751,1731701524607,-793.66589854,9.787e-05,2]
[342318752,1731701524618,-830.49,9.787e-05,2]
[342318753,1731701524628,-830.49,9.787e-05,2]
[342318754,1731701524639,-830.49,9.787e-05,2]
[342318755,1731701524653,-830.49,9.787e-05,2]
[342318756,1731701524664,-830.63079344,9.787e-05,2]
[342318757,1731701524675,-2082.71,9.787e-05,2]
[342318758,1731701524686,-2082.71,9.787e-05,2]
[342318759,1731701524697,-2082.71,9.787e-05,2]
[342318760,1731701524707,-2082.71,9.787e-05,2]
[342318761,1731701524718,-2082.71,9.787e-05,2]
[342318762,1731701524728,-2082.80116187,9.787e-05,2]
[342318763,1731701524738,-1000.49,9.787e-05,2]
[342318764,1731701524749,-1000.49,9.787e-05,2]
[342318765,1731701524759,-1000.49,9.787e-05,2]
[342318766,1731701524770,-1000.49,9.787e-05,2]
[342318767,1731701524780,-1351.02,9.787e-05,2]
[342318768,1731701524790,-1351.02,9.787e-05,2]
[342318769,1731701524800,-1000.49,9.787e-05,2]
[342318770,1731701524811,-1351.02,9.787e-05,2]
[342318771,1731701524821,-1000.56681657,9.787e-05,2]
[342318772,1731701524832,-1351.02,9.787e-05,2]
[342318773,1731701524844,-1351.2539795,9.787e-05,2]
[342318774,1731701524854,-741.44,9.787e-05,2]
[342318775,1731701524864,-741.44,9.787e-05,2]
[342318776,1731701524876,-741.44,9.787e-05,2]
[342318777,1731701524886,-741.44,9.787e-05,2]
[342318778,1731701524900,-741.52065236,9.787e-05,2]
[342318779,1731701524910,-955.8,9.787e-05,2]
[342318780,1731701524921,-955.8,9.787e-05,2]
[342318781,1731701524931,-955.8,9.787e-05,2]
[342318782,1731701524941,-955.8,9.787e-05,2]
[342318783,1731701524951,-956.03388843,9.787e-05,2]
[342318784,1731701524963,-760.56,9.787e-05,2]
[342318785,1731701524974,-760.56,9.787e-05,2]
[342318786,1731701524985,-760.56,9.787e-05,2]
[342318787,1731701524995,-760.56,9.787e-05,2]
[342318788,1731701525005,-760.61410927,9.787e-05,2]
[342318789,1731701525015,-507.54,9.787e-05,2]
[342318790,1731701525025,-1094.15,9.787e-05,2]
[342318791,1731701525035,-507.54,9.787e-05,2]
[342318792,1731701525044,-1094.15,9.787e-05,2]
[342318793,1731701525054,-507.54,9.787e-05,2]
[342318794,1731701525065,-1094.15,9.787e-05,2]
[342318795,1731701525075,-507.54,9.787e-05,2]
[342318796,1731701525085,-1094.15,9.787e-05,2]
[342318797,1731701525095,-507.57301073,9.787e-05,2]
[342318798,1731701525106,-1094.15,9.787e-05,2]
[342318799,1731701525116,-1094.1969948,9.787e-05,2]
[342318800,1731701525125,-670.32,9.787e-05,2]
[342318801,1731701525135,-670.32,9.787e-05,2]
[342318802,1731701525149,-670.32,9.787e-05,2]
[342318803,1731701525162,-670.32,9.787e-05,2]
[342318804,1731701525171,-670.4732057,9.787e-05,2]
[342318805,1731701525181,-535.87,9.787e-05,2]
[342318806,1731701525192,-535.87,9.787e-05,2]
[342318807,1731701525202,-535.87,9.787e-05,2]
[342318808,1731701525211,-535.87,9.787e-05,2]
[342318809,1731701525220,-536.03175375,9.787e-05,2]
[342318810,1731701525231,-731.53,9.787e-05,2]
[342318811,1731701525240,-731.53,9.787e-05,2]
[342318812,1731701525249,-731.53,9.787e-05,2]
[342318813,1731701525259,-731.53,9.787e-05,2]
[342318814,1731701525268,-731.53,9.787e-05,2]
[342318815,1731701525277,-731.60514197,9.787e-05,2]
[342318816,1731701525287,-617.08,9.787e-05,2]
[342318817,1731701525297,-617.08,9.787e-05,2]
[342318818,1731701525306,-617.08,9.787e-05,2]
[342318819,1731701525315,-617.08,9.787e-05,2]
[342318820,1731701525325,-617.17694332,9.787e-05,2]
[342318821,1731701525334,-846.45,9.787e-05,2]
[342318822,1731701525343,-800.44,9.787e-05,2]
[342318823,1731701525353,-846.45,9.787e-05,2]
[342318824,1731701525362,-800.44,9.787e-05,2]
[342318825,1731701525371,-846.45,9.787e-05,2]
[342318826,1731701525380,-800.44,9.787e-05,2]
[342318827,1731701525389,-846.45,9.787e-05,2]
[342318828,1731701525400,-800.44,9.787e-05,2]
[342318829,1731701525410,-846.45,9.787e-05,2]
[342318830,1731701525419,-1142.75,9.787e-05,2]
[342318831,1731701525429,-800.66630277,9.787e-05,2]
[342318832,1731701525438,-846.60463067,9.787e-05,2]
[342318833,1731701525448,-1142.75,9.787e-05,2]
[342318834,1731701525457,-1142.75,9.787e-05,2]
[342318835,1731701525466,-1142.75,9.787e-05,2]
[342318836,1731701525476,-1142.83440575,9.787e-05,2]
[342318837,1731701525489,-373.89751838,9.787e-05,2]
[342318838,1731701525507,-500.0,9.787e-05,2]
[342318839,1731701525520,-500.0,9.787e-05,2]
[342318840,1731701525530,-500.0,9.787e-05,2]
[342318841,1731701525539,-510.46886589,9.787e-05,2]
[342318842,1731701525549,-870.73,9.787e-05,2]
[342318843,1731701525559,-870.73,9.787e-05,2]
[342318844,1731701525569,-870.73,9.787e-05,2]
[342318845,1731701525578,-870.73,9.787e-05,2]
[342318846,1731701525587,-870.8797924,9.787e-05,2]
[342318847,1731701525597,-500.0,9.787e-05,2]
[342318848,1731701525606,-500.0,9.787e-05,2]
[342318849,1731701525615,-500.0,9.787e-05,2]
[342318850,1731701525626,-500.0,9.787e-05,2]
[342318851,1731701525635,-456.04331541,9.787e-05,2]
[342318852,1731701525646,-945.45,9.787e-05,2]
[342318853,1731701525667,-945.45,9.787e-05,2]
[342318854,1731701525677,-1577.49,9.787e-05,2]
[342318855,1731701525687,-945.45,9.787e-05,2]
[342318856,1731701525698,-945.45,9.787e-05,2]
[342318857,1731701525707,-1577.49,9.787e-05,2]
[342318858,1731701525717,-945.45,9.787e-05,2]
[342318859,1731701525726,-1577.49,9.787e-05,2]
[342318860,1731701525735,-945.62880253,9.787e-05,2]
[342318861,1731701525745,-1577.49,9.787e-05,2]
[342318862,1731701525755,-1577.65206778,9.787e-05,2]
[342318863,1731701525834,-818.98,9.787e-05,2]
[342318864,1731701525844,-818.98,9.787e-05,2]
[342318865,1731701525854,-818.98,9.787e-05,2]
[342318866,1731701525863,-818.98,9.787e-05,2]
[342318867,1731701525873,-819.00034304,9.787e-05,2]
[342318868,1731701525882,-620.09,9.787e-05,2]